Cogmind - Beta 16 @@@ ROGUE MODE // 2025.12.04 @ 21:03:03 Player: most_lamentable Result: Destroyed by Y-64 Sentinel with Wave Gun Performance ------------- Evolutions (6) 3000 Regions Visited (16) 3200 Robots Destroyed (152) 760 Value Destroyed (8096) 8096 Prototype IDs (36) 720 Alien Tech Used (0) 0 Bonus (5295) 5295 TOTAL SCORE: 21071 Bonus ------- High Alert Combat Kills 2202 Follower Combat Kills 795 Entered Garrisons 600 Used RIF Installer 1500 Aligned with FarCom 300 Friendly Fire -102 Cogmind --------- Core Integrity 0/1150 Matter 108/300 Energy 92/100 System Corruption 7% Temperature Cool (9) Movement Core (50) Location -4/Factory Parts ------- > --- POWER (1) -------- (None) > --- PROPULSION (5) --- (None) > --- UTILITY (9) ------ Terrain Scan Processor Advanced Terrain Scan Processor Authchip [R/Combat] > --- WEAPON (4) ------- (None) > --- INVENTORY (5) ---- (None) Peak State ------------ > --- POWER ------------ Light Antimatter Reactor > --- PROPULSION ------- Carbon-fiber Leg Flexi-carbon Leg Flexi-carbon Leg > --- UTILITY ---------- High-capacity Storage Unit Armor Integrity Analyzer Improved Utility Shielding Improved Medium Armor Plating Hacking Suite Authchip [R/NC] Relay Coupler [NC] > --- WEAPON ----------- Quantum Rifle AWS/Autocannon > --- INVENTORY -------- Light Antimatter Reactor Carbon-fiber Leg Improved Titanium Leg Nuclear Pulse Thruster Compact Battery Advanced Targeting Computer Microactuators System Shield Relay Coupler [NC] Relay Coupler [NC] Relay Coupler [Swarmer] Relay Coupler [Cutter] Relay Coupler [Grunt] Relay Coupler [Sentry] Relay Coupler [Demolisher] Improved Heavy Laser Precision Rocket Launcher Remote Datajack Remote Datajack Heavy Pick [Rating: 85] Favorites ----------- Power Neutrino Core Engine Light Ion Engine Power Core Neutrino Core Reactor Light Antimatter Reactor Propulsion Carbon-fiber Leg Leg Carbon-fiber Leg Wheel Wheel Flight Unit Nuclear Pulse Thruster Utility Hacking Suite Device Shield Generator Storage High-capacity Storage Unit Processor Armor Integrity Analyzer Hackware Hacking Suite Protection Improved Utility Shielding Weapon AWS/Autocannon Energy Gun Advanced Beam Rifle Energy Cannon Improved EM Pulse Cannon Ballistic Gun Railgun Ballistic Cannon AWS/Autocannon Launcher Precision Rocket Launcher Special Weapon Remote Datajack Slashing Weapon Chainsword Piercing Weapon Heavy Pick Special Melee Weapon Improved Datajack Build | -11 -10 -10 -10 -9 -8 -7 -7 -7 -6 -6 -6 -6 -5 -5 -5 -4 ------- Run | Yrd Mat Min Exi Min Mat Fac Sto Gar Fac Gar Fac Gar Fac Was Fac Fac Slots Evolved 12 | . . . . . 4 2 . . 2 . . . 2 . . 2 Power . | . . . . . . . . . . . . . . . . . Propulsion 3 | . . . . . 1 . . . . . . . 1 . . 1 Utility 7 | . . . . . 1 2 . . 2 . . . 1 . . 1 Weapon 2 | . . . . . 2 . . . . . . . . . . . Parts Attached 146 | 6 4 . 1 . 34 9 5 10 10 16 5 5 4 2 17 18 Power 16 | 1 1 . . . 4 1 1 1 1 1 . 1 . 1 1 2 Engine 5 | 1 1 . . . 2 . 1 . . . . . . . . . Core 7 | . . . . . 2 1 . 1 . . . 1 . . 1 1 Reactor 4 | . . . . . . . . . 1 1 . . . 1 . 1 Propulsion 41 | 2 2 . . . 11 . . 3 3 4 . 2 2 . 7 5 Treads . | . . . . . . . . . . . . . . . . . Leg 26 | 2 . . . . 6 . . 3 3 4 . 2 1 . 3 2 Wheel 7 | . 2 . . . 5 . . . . . . . . . . . Hover . | . . . . . . . . . . . . . . . . . Flight 8 | . . . . . . . . . . . . . 1 . 4 3 Utility 37 | 1 1 . 1 . 3 4 1 4 3 6 2 . . 1 5 5 Device 7 | . 1 . . . . 2 . . 1 . . . . . 2 1 Storage 3 | 1 . . 1 . . . . 1 . . . . . . . . Processor 6 | . . . . . 1 1 . . . 1 . . . . . 3 Hackware 15 | . . . . . . . 1 . 2 5 2 . . 1 3 1 Protection 6 | . . . . . 2 1 . 3 . . . . . . . . Artifact . | . . . . . . . . . . . . . . . . . Weapon 52 | 2 . . . . 16 4 3 2 3 5 3 2 2 . 4 6 Energy Gun 16 | 1 . . . . 3 1 . . 1 4 1 2 . . 2 1 Energy Cannon 9 | . . . . . 3 1 . . . . 1 . . . 2 2 Ballistic Gun 14 | 1 . . . . 9 . . 1 . 1 . . 1 . . 1 Ballistic Cannon 5 | . . . . . 1 1 1 . . . 1 . 1 . . . Launcher 2 | . . . . . . 1 1 . . . . . . . . . Special Weapon 3 | . . . . . . . . 1 1 . . . . . . 1 Impact Weapon . | . . . . . . . . . . . . . . . . . Slashing Weapon 1 | . . . . . . . . . . . . . . . . 1 Piercing Weapon 1 | . . . . . . . . . 1 . . . . . . . Special Melee Weapon 1 | . . . . . . . 1 . . . . . . . . . Unidentified Prototypes 13 | . . . . . 4 2 2 . . 1 2 . 1 . 1 . Parts Lost 63 | . 1 . . . 13 1 . . . 5 1 3 . . 23 16 Power 7 | . 1 . . . 3 . . . . . . 1 . . 1 1 Propulsion 24 | . . . . . 5 . . . . 3 . 1 . . 8 7 Utility 9 | . . . . . . . . . . . . . . . 5 4 Weapon 23 | . . . . . 5 1 . . . 2 1 1 . . 9 4 Highest Loss Streak 14 | . 1 . . . 5 1 . . . 4 1 3 . . 14 6 To Critical Strikes . | . . . . . . . . . . . . . . . . . Average Backups 17 | 4 7 8 8 11 17 17 17 19 19 18 17 18 19 20 19 4 Power . | . . 1 1 1 1 . . . 1 . . . 1 1 1 . Propulsion 2 | 2 5 4 2 2 2 2 2 1 1 4 5 4 5 6 5 . Utility 8 | . . 2 4 6 8 8 10 10 11 9 8 8 7 8 7 2 Weapon 3 | 1 1 1 1 1 3 3 3 4 3 2 2 4 3 3 4 1 Tool/Special . | . . . . . . . . . . . . . . . . . Unused Backups 48 | . 6 . 3 . 11 6 . 8 2 6 1 . 1 . 2 2 Power 7 | . 1 . . . 2 1 . 1 . 1 . . . . 1 . Propulsion 14 | . 5 . 2 . 1 2 . 1 . 2 1 . . . . . Utility 18 | . . . . . 6 2 . 4 1 2 . . . . 1 2 Weapon 8 | . . . 1 . 1 1 . 2 1 1 . . 1 . . . Tool/Special 1 | . . . . . 1 . . . . . . . . . . . Average Slot Usage (%) 91 | . 92 100 100 100 97 97 100 84 85 95 99 100 99 100 94 65 Engine 1 | . 14 14 14 14 5 . . . . . . . . . . . Core 3 | . . . . . 3 7 7 7 5 . . 4 5 1 . . Reactor 1 | . . . . . . . . . . 6 6 1 . 3 4 1 Leg 17 | . 3 . . . 9 23 23 23 20 19 20 20 23 23 19 1 Wheel 3 | . 24 28 28 28 16 . . . . . . . . . . . Device 2 | . 6 14 14 14 1 7 4 . 3 . . . . . . 4 Storage 6 | . 14 14 14 14 9 7 7 7 6 6 6 6 5 5 4 . Processor 7 | . . . . . 7 14 15 11 6 6 . . . . . 10 Hackware 13 | . . . . . . . 2 7 16 24 28 33 29 34 34 25 Protection 7 | . . . . . 8 6 7 10 13 7 10 6 10 5 4 . Energy Gun 6 | . 14 14 14 14 11 7 14 2 1 13 12 11 7 . . 1 Energy Cannon 1 | . . . . . 2 6 7 . . . 3 5 5 . 2 2 Ballistic Gun 5 | . 14 14 14 14 19 5 . 4 2 2 . . . 5 3 . Ballistic Cannon 4 | . . . . . . 7 7 7 6 1 2 6 7 5 8 . Special Weapon 1 | . . . . . . . . . 1 4 6 1 . 4 3 . Peak Build Rating 85 | 6 8 8 11 12 58 67 55 75 83 85 72 70 75 74 74 64 Average Rating 60 | 3 6 8 9 11 33 49 52 72 81 70 68 65 73 72 69 48 On Entrance 43 | . 6 8 8 11 12 40 52 53 74 83 69 70 65 74 73 44 Avg Prop Armor Cover (%) 10 | . . . . . 3 . . . . . . . . . . 13 Naked Turns . | . . . . . . . . . . . . . . . . . Heaviest Build 131 | 14 14 13 48 48 114 119 75 129 131 129 85 78 84 84 93 25 Greatest Support 70 | 20 26 26 26 26 45 45 45 45 50 55 55 55 65 65 70 24 Greatest Overweight (x) 3 | 1 . . 1 1 3 2 1 2 2 2 1 1 1 1 2 3 Average Overweight (x) 1 | . . . . 1 1 1 1 1 2 1 1 1 1 1 1 . Largest Inventory Capacity 20 | 8 8 8 20 20 20 20 20 20 20 20 20 20 20 20 20 5 Average Capacity 18 | 7 8 8 14 20 20 20 20 20 20 20 20 20 20 20 19 5 Most Carried 20 | 8 8 8 12 17 20 20 20 20 20 20 20 20 20 20 20 5 Average Carried 18 | 4 7 8 10 13 19 19 19 19 19 19 19 19 19 20 19 4 Final Capacity 20 | 8 8 8 20 20 20 20 20 20 20 20 20 20 20 20 5 5 Final Carried 20 | 6 8 8 12 17 20 20 20 20 20 19 20 19 20 20 4 . Class Distribution -------------------- 23% | Bothacker-Skirmisher 22% | Gunner 19% | Bothacker-Tank 9% | Skirmisher 5% | Tank 5% | Mutant 3% | Commander-Gunner 3% | Hacker-Scout 3% | Scavenger-Skirmisher Dominant Class ---------------- Mutant | -10/Materials Mutant | -10/Mines Mutant | -10/Exiles Skirmisher | -9/Mines Skirmisher | -8/Materials Gunner | -7/Factory Commander-Gunner | -7/Storage Gunner | -7/Garrison Bothacker-Tank | -6/Factory Bothacker-Skirmisher | -6/Garrison Bothacker-Tank | -6/Factory Bothacker-Skirmisher | -6/Garrison Bothacker-Tank | -5/Factory Bothacker-Skirmisher | -5/Waste Bothacker-Skirmisher | -5/Factory Hacker-Scout | -4/Factory Resources | -11 -10 -10 -10 -9 -8 -7 -7 -7 -6 -6 -6 -6 -5 -5 -5 -4 ----------- Run | Yrd Mat Min Exi Min Mat Fac Sto Gar Fac Gar Fac Gar Fac Was Fac Fac Matter Collected 4684 | 195 20 . . 100 837 117 225 503 273 658 215 53 . 787 476 225 Remotely . | . . . . . . . . . . . . . . . . . Salvage Created 6321 | . 20 . . 30 1237 182 132 948 877 657 146 181 . 1092 560 259 Parts 272 | . 3 . . 6 61 10 6 48 51 31 10 11 . 4 16 15 Haulers Intercepted 2 | . . . . . 1 . 1 . . . . . . . . . Recyclers Shooed 3 | . . . . . . . 1 . . . 2 . . . . . Parts Field Recycled . | . . . . . . . . . . . . . . . . . Retrieved Matter . | . . . . . . . . . . . . . . . . . Parts Self-Destructed . | . . . . . . . . . . . . . . . . . Prevented . | . . . . . . . . . . . . . . . . . Parts Restored 1 | . . . . . . 1 . . . . . . . . . . Broken 1 | . . . . . . 1 . . . . . . . . . . Kills | -11 -10 -10 -10 -9 -8 -7 -7 -7 -6 -6 -6 -6 -5 -5 -5 -4 ------- Run | Yrd Mat Min Exi Min Mat Fac Sto Gar Fac Gar Fac Gar Fac Was Fac Fac Combat Hostiles Destroyed 135 | . . . . 2 28 3 1 27 20 18 5 10 . 6 8 7 Melee 1 | . . . . . . . . . . . . . . . . 1 Guns 32 | . . . . 2 14 1 . 5 1 5 1 1 . . 2 . Cannons 77 | . . . . . 14 1 1 22 19 5 1 2 . . 6 6 AOE 24 | . . . . . . 1 . . . 7 3 7 . 6 . . Classes Destroyed 19 | . 1 . . 1 12 1 . 1 1 . . . . 1 . 1 Worker 4 | . . . . . 1 . 1 . . . 2 . . . . . Builder 2 | . . . . . 1 . . . . . . . . . 1 . Hauler 2 | . . . . . 1 . 1 . . . . . . . . . Recycler 2 | . . . . . 1 . . . . . . . . . 1 . Carrier 1 | . . . . . 1 . . . . . . . . . . . Operator 1 | . 1 . . . . . . . . . . . . . . . Watcher 5 | . . . . . 1 3 . 1 . . . . . . . . Swarmer 34 | . . . . 2 7 . . 7 . 7 3 4 . . . 4 Cutter 1 | . . . . . . . . . . . . . . . . 1 Grunt 44 | . . . . . 11 . . 7 12 7 . 3 . . 2 2 Brawler 5 | . . . . . 1 . . 1 1 . 1 . . . 1 . Duelist 8 | . . . . . . . . 5 2 1 . . . . . . Protector 2 | . . . . . . . . . 2 . . . . . . . Sentry 11 | . . . . . 4 1 1 2 . 3 . . . . . . Specialist 5 | . . . . . 2 . . 1 . . . . . . 2 . Hunter 6 | . . . . . 2 . . 1 . . 1 . . . 2 . Programmer 11 | . . . . . . 2 . 3 2 . . 3 . . 1 . Heavy 2 | . . . . . 1 . . . 1 . . . . . . . Compactor 6 | . . . . . . . . . . . . . . 6 . . Best Kill Streak 11 | . 1 . . 2 11 1 1 6 8 4 4 7 . 2 4 4 Combat Bots Only 8 | . . . . 2 7 1 1 6 8 4 3 7 . 2 3 4 Max Kills in Single Turn 3 | . 1 . . 1 2 1 1 1 1 3 2 3 . 1 1 1 Gunslinging . | . . . . . . . . . . . . . . . . . Exploded 3 | . . . . . . 1 . . . 3 1 3 . 1 . . Melee 1 | . . . . . . . . . . . . . . . . 1 Uniques/NPCs Destroyed . | . . . . . . . . . . . . . . . . . Combat | -11 -10 -10 -10 -9 -8 -7 -7 -7 -6 -6 -6 -6 -5 -5 -5 -4 -------- Run | Yrd Mat Min Exi Min Mat Fac Sto Gar Fac Gar Fac Gar Fac Was Fac Fac Hostile Shots Fired 832 | . . . . 4 184 39 23 62 38 137 40 34 . . 129 142 Missed 241 | . . . . 1 43 15 10 17 14 44 9 9 . . 25 54 Hits 591 | . . . . 3 141 24 13 45 24 93 31 25 . . 104 88 Melee 21 | . . . . . 1 . . . 2 . . . . . . 18 Projectile 570 | . . . . 3 140 24 13 45 22 93 31 25 . . 104 70 AOE 4 | . . . . . . . . . . . 1 . . . . 3 Critical Strikes 30 | . . . . . 5 . . 2 1 1 1 1 . . 6 13 Actively Blocked 1 | . . . . . 1 . . . . . . . . . . . Damage Taken 10468 | . 39 . . 22 1986 380 123 666 521 999 441 571 . 18 2573 2129 Core 2447 | . . . . 6 230 31 20 137 . 130 57 107 . . 565 1164 Absorbed by Shields 153 | . . . . . . 109 44 . . . . . . . . . Redirected to Shielding 130 | . . . . . 20 . . . 10 67 11 . . . 22 . Regen/Repaired (Parts) 136 | . . . . . . 136 . . . . . . . . . . Core Remaining (%) 72 | 100 . . . 97 58 . . 73 . . . 65 . . 43 . Volleys Fired 325 | . 1 . . 2 55 9 10 38 38 47 11 11 . 45 43 15 Largest 4 | . 2 . . 2 4 4 4 4 1 4 3 4 . 1 4 2 Hottest 286 | . 60 . . 60 178 198 240 219 94 286 243 233 . 43 265 144 Shots Fired 743 | . 2 . . 4 207 34 18 95 71 93 19 20 . 45 114 21 Gun 353 | . 2 . . 4 149 17 13 41 25 56 5 6 . . 28 7 Cannon 283 | . . . . . 58 17 5 53 34 12 7 8 . . 80 9 Launcher 63 | . . . . . . . . . . 14 3 5 . 39 . 2 Special 44 | . . . . . . . . 1 12 11 4 1 . 6 6 3 Kinetic 351 | . 1 . . 2 141 20 3 75 37 23 3 5 . . 40 1 Thermal 206 | . . . . . 26 9 13 17 22 45 9 9 . . 50 6 Explosive 63 | . . . . . . . . . . 14 3 5 . 39 . 2 Electromagnetic 79 | . 1 . . 2 40 5 2 2 . . . . . . 18 9 Robot Hit Streak 31 | . 1 . . 3 31 7 11 12 12 10 5 7 . 20 17 7 Robot Miss Streak 6 | . . . . . 6 3 2 3 3 5 1 1 . 1 5 2 Penetration Max . | . . . . . . . . . . . . . . . . . Secondary Targets 1 | . . . . . 1 . . . . . . . . . . . Max Gunslinging Chain 1 | . . . . . 1 . . . . . . . . . . . Autonomous 129 | . . . . . 32 3 . 47 34 13 . . . . . . Shots Hit Robots 477 | . 1 . . 2 140 20 12 66 52 52 9 10 . 25 63 25 Core Hits 221 | . 1 . . 2 52 9 5 30 25 23 11 16 . 14 21 12 Critical Kills 2 | . . . . . . 1 . 1 . . . . . . . . Critical Parts Destroyed 2 | . . . . . . . . 1 . . . . . . 1 . Critical Strikes 29 | . . . . . 6 4 2 7 2 . . 2 . . 5 1 Burn 6 | . . . . . 2 . 2 . . . . 1 . . . 1 Destroy 4 | . . . . . . 1 . 2 . . . . . . 1 . Blast 16 | . . . . . 3 2 . 5 2 . . 1 . . 3 . Corrupt 3 | . . . . . 1 1 . . . . . . . . 1 . Melee Attacks 22 | . . . . . . . . . 1 . . . . . 7 14 Impact . | . . . . . . . . . . . . . . . . . Slashing 11 | . . . . . . . . . . . . . . . . 11 Piercing 11 | . . . . . . . . . 1 . . . . . 7 3 Sneak Attacks . | . . . . . . . . . . . . . . . . . Combat Hostiles . | . . . . . . . . . . . . . . . . . Follow-up Attacks . | . . . . . . . . . . . . . . . . . Damage Inflicted 23621 | . 16 . . 24 4896 723 294 3817 3220 2020 536 867 . 4725 1733 750 Guns 4485 | . 16 . . 24 1666 180 188 576 488 682 114 72 . . 386 93 Cannons 12124 | . . . . . 3101 433 106 3241 2732 673 97 174 . . 1347 220 Explosions 6649 | . . . . . 129 110 . . . 665 325 621 . 4670 . 129 Melee 293 | . . . . . . . . . . . . . . . . 293 Ramming 70 | . . . . . . . . . . . . . . 55 . 15 Kinetic 12269 | . . . . . 3709 398 82 3562 2762 726 43 147 . . 814 26 Thermal 3245 | . . . . . 589 65 188 225 458 629 168 99 . . 757 67 Explosive 6520 | . . . . . . 110 . . . 665 325 621 . 4670 . 129 Electromagnetic 1224 | . 16 . . 24 598 150 24 30 . . . . . . 162 220 Impact . | . . . . . . . . . . . . . . . . . Slashing 293 | . . . . . . . . . . . . . . . . 293 Piercing . | . . . . . . . . . . . . . . . . . Highest Corruption 11 | . . . . . . 5 5 5 3 3 3 5 . . 11 7 Average Corruption 4 | . . . . . . 4 5 5 1 3 3 4 . . 7 3 Corruption Purged . | . . . . . . . . . . . . . . . . . Corruption Blocked . | . . . . . . . . . . . . . . . . . Effects 181 | . . . . . . 11 11 101 8 32 5 8 . . 1 4 Message Errors 47 | . . . . . . 2 5 27 1 8 2 . . . . 2 Matter Fused 44 | . . . . . . 2 2 24 1 10 1 3 . . . 1 Heat Flow Errors 30 | . . . . . . 1 3 16 1 8 . 1 . . . . Energy Discharges 18 | . . . . . . 2 . 9 3 3 . 1 . . . . Parts Fused 3 | . . . . . . . . 2 . 1 . . . . . . Data Loss (minor) 19 | . . . . . . 4 . 10 . 2 . 3 . . . . Data Loss (major) 11 | . . . . . . . 1 7 . . 1 . . . 1 1 Misfires 4 | . . . . . . . . 4 . . . . . . . . Alerts 4 | . . . . . . . . 2 1 . 1 . . . . . Weapon Failures 1 | . . . . . . . . . 1 . . . . . . . Overload Shots 1 | . . . . . . . . . . . 1 . . . . . Overflow Damage 1082 | . . . . . 341 38 . 296 269 41 21 37 . 25 14 . Projectiles 980 | . . . . . 330 38 . 296 269 9 . 24 . . 14 . Explosions 102 | . . . . . 11 . . . . 32 21 13 . 25 . . Melee . | . . . . . . . . . . . . . . . . . Knockbacks 43 | . . . . . 11 2 . 10 12 1 . 1 . . 6 . Impact . | . . . . . . . . . . . . . . . . . Kinetic 32 | . . . . . 7 2 . 8 10 1 . 1 . . 3 . Secondary 11 | . . . . . 4 . . 2 2 . . . . . 3 . Self-Inflicted Damage 638 | . . . . . 51 229 . 102 . 174 . 59 . 18 . 5 Shots 14 | . . . . . 2 3 . 1 . 6 . 1 . 1 . . Rammed 5 | . . . . . . . . . . . . . . . . 5 Targets Rammed 19 | . . . . . . . . . . . . . . 14 . 5 Kicked 14 | . . . . . . . . . . . . . . 14 . . Crushed . | . . . . . . . . . . . . . . . . . Highest Temperature 726 | . . . . . 564 200 283 483 351 718 165 340 . . 726 45 Average Temperature 140 | . . . . . 158 81 98 102 106 174 68 147 . . 190 18 Received Heat Transfer 1350 | . . . . . 423 8 19 102 90 222 . 162 . . 174 150 Effects 43 | . . . . . 10 . . 2 1 14 . 1 . . 15 . Shutdowns 10 | . . . . . 3 . . 1 . 2 . . . . 4 . Energy Bleed 3 | . . . . . . . . . 1 1 . . . . 1 . Interference 8 | . . . . . 4 . . . . 3 . 1 . . . . Matter Decay 7 | . . . . . 1 . . 1 . 1 . . . . 4 . Short Circuit 4 | . . . . . 1 . . . . 2 . . . . 1 . Damage (minor) 10 | . . . . . 1 . . . . 5 . . . . 4 . Damage (core) 1 | . . . . . . . . . . . . . . . 1 . Siege Activations . | . . . . . . . . . . . . . . . . . Martial Activations . | . . . . . . . . . . . . . . . . . Shielding Activations . | . . . . . . . . . . . . . . . . . Robots Disrupted 1 | . . . . . 1 . . . . . . . . . . . Combat Hostiles . | . . . . . . . . . . . . . . . . . Robots Corrupted . | . . . . . . . . . . . . . . . . . Combat Hostiles . | . . . . . . . . . . . . . . . . . Parts Fried 5 | . . . . . 2 3 . . . . . . . . . . Impact Corruptions 1 | . . . . . . . . . . . . . . . 1 . Robots Melted 1 | . . . . . . . . . . 1 . . . . . . Combat Hostiles 1 | . . . . . . . . . . 1 . . . . . . Parts Melted 5 | . . . . . 1 . . . . 2 . 1 . . . 1 Heat Transferred 5166 | . . . . . 1099 111 481 370 426 1155 260 337 . . 705 222 Parts Sabotaged . | . . . . . . . . . . . . . . . . . Parts Stolen . | . . . . . . . . . . . . . . . . . Parts Stripped . | . . . . . . . . . . . . . . . . . Power Chain Reactions 2 | . . . . . 2 . . . . . . . . . . . Alert | -11 -10 -10 -10 -9 -8 -7 -7 -7 -6 -6 -6 -6 -5 -5 -5 -4 ------- Run | Yrd Mat Min Exi Min Mat Fac Sto Gar Fac Gar Fac Gar Fac Was Fac Fac Maximum Alert Level 5 | . . . . . 2 . . 5 4 5 4 3 2 . . . Low Security (%) 42 | 100 100 100 . 100 50 100 100 12 . . . . . 100 100 100 Level 1 8 | . . . . . 27 . . 18 . . . . . . . . Level 2 8 | . . . . . 22 . . 15 . . . . 100 . . . Level 3 14 | . . . . . . . . 14 40 13 62 100 . . . . Level 4 17 | . . . . . . . . 11 59 68 37 . . . . . Level 5 8 | . . . . . . . . 26 . 17 . . . . . . High Security . | . . . . . . . . . . . . . . . . . Max Security . | . . . . . . . . . . . . . . . . . Peak Influence 2558 | . 5 . . 50 448 199 118 2558 1342 1795 1167 1044 548 142 102 72 Initial 1342 | . . . . . 7 199 50 55 1342 899 942 795 548 142 11 . Average 632 | . . . . 14 205 88 44 1002 1138 1372 1027 955 480 56 20 7 Influence Increases 7356 | . 5 . . 50 934 345 366 2623 499 1006 455 279 . 224 361 209 Destroy 0b10 Robot/C 3020 | . . . . 40 580 60 160 740 360 380 180 200 . . 180 140 Destroy 0b10 Robot/NC 110 | . 5 . . . 25 15 15 5 10 . 25 . . . 10 . Destroy Leader 514 | . . . . 10 174 36 64 20 70 30 40 10 . . 40 20 Allied During Kill 208 | . . . . . . . 105 56 . 16 29 . . . 2 . Successful Hack 116 | . . . . . 24 36 22 14 20 . . . . . . . Disable Machine 360 | . . . . . 15 120 . 15 30 15 120 30 . . 15 . Anti-Garrison Action 1900 | . . . . . . . . 1650 . 250 . . . . . . Destroy Structure 753 | . . . . . 11 78 . 63 9 180 61 39 . 224 54 34 Partial Spotted 15 | . . . . . . . . . . . . . . . 15 . Lose Combat Pursuer 360 | . . . . . 105 . . 60 . 135 . . . . 45 15 Influence Decreases 7343 | . 5 . . 30 515 674 390 151 1772 496 1113 372 636 616 377 196 Entered New Map 3908 | . . . . . 13 240 60 31 1216 386 853 342 496 266 5 . Time Decay 2574 | . 5 . . 30 372 424 230 . 546 . 190 . 140 350 193 94 Lost Part 494 | . . . . . 130 10 . . . 50 10 30 . . 162 102 Lost Ally 367 | . . . . . . . 100 120 10 60 60 . . . 17 . Squads Dispatched 30 | . . . . . 7 3 1 . 7 . 4 . . . 4 4 Investigation 4 | . . . . . 1 1 1 . 1 . . . . . . . Extermination 8 | . . . . . . 2 . . 2 . . . . . 2 2 Reinforcement 9 | . . . . . 3 . . . 1 . 1 . . . 2 2 Assault 3 | . . . . . . . . . 3 . . . . . . . Garrison 6 | . . . . . 3 . . . . . 3 . . . . . Intercept . | . . . . . . . . . . . . . . . . . Searches Triggered . | . . . . . . . . . . . . . . . . . Construction Impeded 1 | . . . . . . . . . . . 1 . . . . . Haulers Reinforced . | . . . . . . . . . . . . . . . . . Active Scanning Responses . | . . . . . . . . . . . . . . . . . Cargo Convoy Interrupts 1 | . . . . . . . . . 1 . . . . . . . Stealth | -11 -10 -10 -10 -9 -8 -7 -7 -7 -6 -6 -6 -6 -5 -5 -5 -4 --------- Run | Yrd Mat Min Exi Min Mat Fac Sto Gar Fac Gar Fac Gar Fac Was Fac Fac Distress Signals 6 | . . . . . 1 . 2 . 2 . . . . . 1 . Communications Jammed 2 | . . . . . . . . . . . . . . . . 2 Distress Signals 2 | . . . . . . . . . . . . . . . . 2 Times Spotted 201 | . 1 . . 3 39 5 8 36 22 29 9 6 . 6 18 19 Peak Tracking Total 9 | . 1 . . 3 7 1 3 7 5 4 3 7 . 2 5 9 Tactical Retreats 20 | . . . . . 6 . . 3 . 7 . . . . 3 1 Traps | -11 -10 -10 -10 -9 -8 -7 -7 -7 -6 -6 -6 -6 -5 -5 -5 -4 ------- Run | Yrd Mat Min Exi Min Mat Fac Sto Gar Fac Gar Fac Gar Fac Was Fac Fac Traps Triggered 16 | . 1 . . . 1 1 . 7 . 4 . . 1 . 1 . Indirectly . | . . . . . . . . . . . . . . . . . Trap Hack Attempts . | . . . . . . . . . . . . . . . . . Triggered . | . . . . . . . . . . . . . . . . . Disarmed . | . . . . . . . . . . . . . . . . . Reprogrammed . | . . . . . . . . . . . . . . . . . Reused . | . . . . . . . . . . . . . . . . . Traps Extracted . | . . . . . . . . . . . . . . . . . Installed . | . . . . . . . . . . . . . . . . . Triggered . | . . . . . . . . . . . . . . . . . Machines | -11 -10 -10 -10 -9 -8 -7 -7 -7 -6 -6 -6 -6 -5 -5 -5 -4 ---------- Run | Yrd Mat Min Exi Min Mat Fac Sto Gar Fac Gar Fac Gar Fac Was Fac Fac Machines Disabled 33 | . . . . . 1 8 . 7 2 4 8 2 . . 1 . Max in Single Turn 3 | . . . . . 1 3 . 2 1 1 . 1 . . 1 . Garrison Relay 7 | . . . . . . . . 4 . 3 . . . . . . Phase Generator 1 | . . . . . . . . 1 . . . . . . . . Machines Repaired . | . . . . . . . . . . . . . . . . . Machines Dismantled . | . . . . . . . . . . . . . . . . . Machines Sabotaged . | . . . . . . . . . . . . . . . . . Overloaded Fab Kills . | . . . . . . . . . . . . . . . . . Hacking | -11 -10 -10 -10 -9 -8 -7 -7 -7 -6 -6 -6 -6 -5 -5 -5 -4 --------- Run | Yrd Mat Min Exi Min Mat Fac Sto Gar Fac Gar Fac Gar Fac Was Fac Fac Machines Accessed 38 | . 2 . 5 . 5 3 8 1 4 3 1 1 . . 2 3 Terminals 21 | . 2 . . . 4 . 5 1 1 3 . 1 . . 2 2 Fabricators . | . . . . . . . . . . . . . . . . . Repair Stations 1 | . . . . . . 1 . . . . . . . . . . Recycling Units 5 | . . . . . . 1 2 . 1 . . . . . . 1 Scanalyzers 3 | . . . . . 1 1 . . 1 . . . . . . . Garrison Access 3 | . . . . . . . 1 . 1 . 1 . . . . . Total Hacks 112 | . 5 . 50 . 13 8 10 1 7 5 1 1 . . 3 8 Successful 76 | . . . 50 . 5 5 4 1 3 2 1 1 . . . 4 Failed 35 | . 5 . . . 8 2 6 . 4 3 . . . . 3 4 Catastrophic 9 | . 2 . . . . . 3 . 1 . . . . . 2 1 Database Lockouts 1 | . . . . . . 1 . . . . . . . . . . Manual 36 | . 5 . 1 . 10 1 8 . 4 . . . . . 3 4 Terminals 39 | . 5 . . . 11 . 6 1 1 5 . 1 . . 3 6 Fabricators . | . . . . . . . . . . . . . . . . . Repair Stations 2 | . . . . . . 2 . . . . . . . . . . Recycling Units 10 | . . . . . . 2 3 . 3 . . . . . . 2 Scanalyzers 8 | . . . . . 2 4 . . 2 . . . . . . . Garrison Access 3 | . . . . . . . 1 . 1 . 1 . . . . . Terminal Hacks 60 | . . . 50 . 3 . 1 1 . 2 . 1 . . . 2 Record 50 | . . . 49 . . . . . . . . . . . . 1 Robot Analysis 1 | . . . . . 1 . . . . . . . . . . . Open Door 2 | . . . . . . . 1 . . 1 . . . . . . Emergency Access Points 2 | . . . . . . . . . . 1 . 1 . . . . Terminal Index 1 | . . . . . . . . . . . . . . . . 1 Recall Investigation 2 | . . . . . 2 . . . . . . . . . . . Security Stations 1 | . . . . . . . . 1 . . . . . . . . Proto ID Catalog 1 | . . . 1 . . . . . . . . . . . . . Fabricator Hacks . | . . . . . . . . . . . . . . . . . Repair Station Hacks 2 | . . . . . . 2 . . . . . . . . . . Scan Component 1 | . . . . . . 1 . . . . . . . . . . Repair 1 | . . . . . . 1 . . . . . . . . . . Recycling Unit Hacks 2 | . . . . . . 1 . . . . . . . . . 1 Report Inventory 2 | . . . . . . 1 . . . . . . . . . 1 Scanalyzer 5 | . . . . . 2 1 . . 2 . . . . . . . Insert Component 3 | . . . . . 1 . . . 2 . . . . . . . Retrieve Study 2 | . . . . . 1 1 . . . . . . . . . . Garrison Access Hacks 3 | . . . . . . . 1 . 1 . 1 . . . . . Unlock Access 3 | . . . . . . . 1 . 1 . 1 . . . . . Unauthorized Hacks 4 | . . . . . . 1 2 . . . . . . . . 1 Terminals . | . . . . . . . . . . . . . . . . . Fabricators . | . . . . . . . . . . . . . . . . . Repair Stations . | . . . . . . . . . . . . . . . . . Recycling Units 4 | . . . . . . 1 2 . . . . . . . . 1 Reject 4 | . . . . . . 1 2 . . . . . . . . 1 Scanalyzers . | . . . . . . . . . . . . . . . . . Garrison Access . | . . . . . . . . . . . . . . . . . Data Cores Recovered 1 | . 1 . . . . . . . . . . . . . . . Used . | . . . . . . . . . . . . . . . . . Hacking Detections 27 | . 2 . . . 4 2 7 1 4 2 1 . . . 2 2 Full Trace Events 1 | . . . . . . . 1 . . . . . . . . . Feedback Events . | . . . . . . . . . . . . . . . . . Feedback Blocked . | . . . . . . . . . . . . . . . . . Robot Schematics Acquired . | . . . . . . . . . . . . . . . . . Robots Built . | . . . . . . . . . . . . . . . . . Authchips . | . . . . . . . . . . . . . . . . . Time . | . . . . . . . . . . . . . . . . . Total Robot Build Rating . | . . . . . . . . . . . . . . . . . Part Schematics Acquired . | . . . . . . . . . . . . . . . . . Parts Built . | . . . . . . . . . . . . . . . . . Authchips . | . . . . . . . . . . . . . . . . . Time . | . . . . . . . . . . . . . . . . . Total Part Build Rating . | . . . . . . . . . . . . . . . . . Part Studies Acquired 2 | . . . . . 1 1 . . . . . . . . . . Parts Repaired 1 | . . . . . . 1 . . . . . . . . . . Time 38 | . . . . . . 38 . . . . . . . . . . Parts Recycled . | . . . . . . . . . . . . . . . . . Recycled Matter . | . . . . . . . . . . . . . . . . . Retrieved Matter . | . . . . . . . . . . . . . . . . . Retrieved Components . | . . . . . . . . . . . . . . . . . Parts Scanalyzed . | . . . . . . . . . . . . . . . . . Part Schematics Acquired . | . . . . . . . . . . . . . . . . . Parts Damaged . | . . . . . . . . . . . . . . . . . Bothacking | -11 -10 -10 -10 -9 -8 -7 -7 -7 -6 -6 -6 -6 -5 -5 -5 -4 ------------ Run | Yrd Mat Min Exi Min Mat Fac Sto Gar Fac Gar Fac Gar Fac Was Fac Fac Used RIF Installer 3 | . . . . . . . . 1 . 1 . 1 . . . . Signal Jammer 1 | . . . . . . . . . . 1 . . . . . . Patrol Navigation 1 | . . . . . . . . . . . . 1 . . . . Robots Hacked 25 | . . . . . . . . . 4 5 2 1 . 6 4 3 Non-combat 10 | . . . . . . . . . 4 . 1 . . . 2 3 Combat 15 | . . . . . . . . . . 5 1 1 . 6 2 . Robot Hacks Applied 25 | . . . . . . . . . 4 5 2 1 . 6 4 3 find_chute 1 | . . . . . . . . . 1 . . . . . . . hold_bot 1 | . . . . . . . . . . . . . . . . 1 find_fabricator 1 | . . . . . . . . . . . 1 . . . . . find_recycling 1 | . . . . . . . . . 1 . . . . . . . ignore_parts 1 | . . . . . . . . . 1 . . . . . . . summon_haulers 1 | . . . . . . . . . . . . . . . . 1 ignore_targets 6 | . . . . . . . . . . . . . . 6 . . amplify_resonance 5 | . . . . . . . . . . 2 . 1 . . 2 . wipe_record 1 | . . . . . . . . . . . . . . . 1 . formatsys_low 1 | . . . . . . . . . 1 . . . . . . . formatsys_high 6 | . . . . . . . . . . 3 1 . . . 1 1 Relay Couplers Released 32 | . . . . . . . . 21 1 10 . . . . . . Machine Destruction 28 | . . . . . . . . 17 1 10 . . . . . . Programmers 4 | . . . . . . . . 4 . . . . . . . . Attached 9 | . . . . . . . . . 1 4 1 . . 1 2 . Fabnet Peak Effective % . | . . . . . . . . . . . . . . . . . Robots Rewired 2 | . . . . . . . . . . 2 . . . . . . Allies Hacked . | . . . . . . . . . . . . . . . . . Hacks Repelled . | . . . . . . . . . . . . . . . . . Allies | -11 -10 -10 -10 -9 -8 -7 -7 -7 -6 -6 -6 -6 -5 -5 -5 -4 -------- Run | Yrd Mat Min Exi Min Mat Fac Sto Gar Fac Gar Fac Gar Fac Was Fac Fac Total Allies 21 | . . . . . . . 10 2 1 5 1 . . . 1 1 Largest Group 10 | . . . . . . . 10 5 1 2 2 . . . 1 . Highest-Rated Group 173 | . . . . . . . 173 160 10 102 102 . . . 49 . Highest-Rated Ally 80 | . . . . . . . 29 80 10 51 51 . . . 49 . Total Orders . | . . . . . . . . . . . . . . . . . Ally Attacks 147 | . . . . . . . 53 48 . 10 34 . . . 2 . Total Damage 3376 | . . . . . . . 728 965 . 283 1329 . . . 71 . Kills 28 | . . . . . . . 8 11 . 1 7 . . . 1 . Allies Corrupted . | . . . . . . . . . . . . . . . . . Allies Melted . | . . . . . . . . . . . . . . . . . Intel | -11 -10 -10 -10 -9 -8 -7 -7 -7 -6 -6 -6 -6 -5 -5 -5 -4 ------- Run | Yrd Mat Min Exi Min Mat Fac Sto Gar Fac Gar Fac Gar Fac Was Fac Fac Active Infowar (turns) 1558 | . 87 15 531 129 271 . . . . . . . . . 10 515 Terrain 1558 | . 87 15 531 129 271 . . . . . . . . . 10 515 Robot Analysis Total 1 | . . . . . 1 . . . . . . . . . . . Derelict Logs Recovered . | . . . . . . . . . . . . . . . . . Drone Launches . | . . . . . . . . . . . . . . . . . Drone Recoveries . | . . . . . . . . . . . . . . . . . Exploration | -11 -10 -10 -10 -9 -8 -7 -7 -7 -6 -6 -6 -6 -5 -5 -5 -4 ------------- Run | Yrd Mat Min Exi Min Mat Fac Sto Gar Fac Gar Fac Gar Fac Was Fac Fac Turns Passed 15393 | 62 166 15 531 129 1829 1169 610 3888 1564 1568 397 454 289 798 1084 840 Spaces Moved 6644 | 40 156 17 534 82 756 543 262 1436 539 644 165 209 141 336 365 419 Core 32 | 9 . . . . . . . . . . . . . . . 23 Treads . | . . . . . . . . . . . . . . . . . Legs 5033 | 31 5 . . . 275 543 262 1436 539 644 165 209 141 336 349 98 Wheels 1265 | . 151 17 534 82 481 . . . . . . . . . . . Hover . | . . . . . . . . . . . . . . . . . Flight 314 | . . . . . . . . . . . . . . . 16 298 Fastest Speed 31 | 50 90 90 90 105 91 190 190 190 260 190 193 193 192 192 31 31 Average Speed 185 | 111 90 90 98 105 131 190 190 254 260 204 193 193 192 192 188 63 Slowest Speed 260 | 120 120 90 105 105 260 260 190 260 260 260 193 193 192 192 260 200 Overloaded Moves . | . . . . . . . . . . . . . . . . . Propulsion Burnouts . | . . . . . . . . . . . . . . . . . Robots Hopped . | . . . . . . . . . . . . . . . . . Potential Cave-ins . | . . . . . . . . . . . . . . . . . Cave-ins Triggered . | . . . . . . . . . . . . . . . . . Exploration Rate (%) 32 | 4 31 10 90 16 41 17 42 98 10 68 4 30 5 68 9 14 Regions Visited 16 Branch Regions 4 Pre-discovered Areas 2 | . . . 1 1 . . . . . . . . . . . . Known Exits Taken 3 | . . . . . . . 1 . 1 . 1 . . . . . Unknown Exits Taken 8 | 1 1 1 1 1 1 1 . . . . . . . . 1 . Scrap Searched . | . . . . . . . . . . . . . . . . . Spaces Dug 5 | . . . . . . . . . 1 . . . . . 1 3 Terrain Destroyed 718 | . . . . . 7 85 . 63 9 176 12 29 . 289 26 22 Melee 5 | . . . . . . . . . 1 . . . . . 1 3 Projectile 54 | . . . . . 2 4 . 11 8 1 3 . . . 25 . AOE 659 | . . . . . 5 81 . 52 . 175 9 29 . 289 . 19 Terrain Rammed . | . . . . . . . . . . . . . . . . . Walls Destroyed . | . . . . . . . . . . . . . . . . . Machines Disabled . | . . . . . . . . . . . . . . . . . Actions | -11 -10 -10 -10 -9 -8 -7 -7 -7 -6 -6 -6 -6 -5 -5 -5 -4 --------- Run | Yrd Mat Min Exi Min Mat Fac Sto Gar Fac Gar Fac Gar Fac Was Fac Fac Total 9253 | 57 181 16 543 120 1509 662 358 1635 666 832 228 242 161 430 661 952 Wait 1649 | . 1 . . 32 554 63 71 77 53 71 38 4 2 30 202 451 Move 6631 | 39 155 16 533 81 755 542 262 1435 539 643 164 208 141 335 364 419 Hop . | . . . . . . . . . . . . . . . . . Pick Up 178 | 12 12 . 5 5 53 18 3 24 7 13 4 6 5 . 8 3 Fast Attach 25 | . . . . . 1 1 . 1 . 4 2 . 2 . . 14 Attach 102 | 6 4 . . . 30 7 1 2 2 8 2 3 2 . 20 15 Detach 24 | . . . . . 9 1 . . . 3 1 . . . . 10 Swap 103 | . . . 1 . 17 5 7 11 17 18 3 8 4 5 7 . Drop 139 | . 8 . 4 . 35 16 4 26 9 15 3 2 5 1 5 6 Fire 325 | . 1 . . 2 55 9 10 38 38 47 11 11 . 45 43 15 Melee 22 | . . . . . . . . . 1 . . . . . 7 14 Ram 5 | . . . . . . . . . . . . . . . . 5 Kick 14 | . . . . . . . . . . . . . . 14 . . Crush . | . . . . . . . . . . . . . . . . . Escape Stasis 35 | . . . . . . . . 20 . 10 . . . . 5 . Rewire 1 | . . . . . . . . 1 . . . . . . . . Trap . | . . . . . . . . . . . . . . . . . Miscellaneous . | . . . . . . . . . . . . . . . . . Route ------- -11/Scrapyard -10/Materials -10/Mines -10/Exiles (discovered 2 exits: [*Min x2]) -9/Mines -8/Materials -7/Factory -7/Storage -7/Garrison (discovered 3 exits: *Fac x3) -6/Factory -6/Garrison (discovered 2 exits: *Fac x2) -6/Factory -6/Garrison -5/Factory -5/Waste -5/Factory -4/Factory History --------- Turn | Location | Event 2 | -11/Scrapyard | Met Revision 17 30 | -11/Scrapyard | Discovered new exit (range 15) 63 | -11/Scrapyard | Entered Materials 183 | -10/Materials | Discovered new exit (range 7) 229 | -10/Materials | Entered Mines 240 | -10/Mines | Deemed a non-threat by the Exiles lab entrance 240 | -10/Mines | Discovered new exit (range 5) 244 | -10/Mines | Entered Exiles 258 | -10/Exiles | Discovered new exit (range 15) 278 | -10/Exiles | Met 8R-AWN 290 | -10/Exiles | Met EX-HEX 310 | -10/Exiles | Build established: Mutant 316 | -10/Exiles | Met EX-BIN 331 | -10/Exiles | Aligned with FarCom system 332 | -10/Exiles | Given EX-Vault access code 378 | -10/Exiles | Opened EX-Vault 383 | -10/Exiles | Found Prototype Ballistic Cannon 387 | -10/Exiles | Identified AWS/Autocannon 406 | -10/Exiles | Warned to stay clear of 0b10 Research branches 434 | -10/Exiles | Learned location of Zion (-7) 519 | -10/Exiles | Discovered new exit (range 14) 570 | -10/Exiles | Met EX-DEC 605 | -10/Exiles | Visited The Gauntlet 775 | -10/Exiles | Left Exiles lab with AWS/Autocannon 775 | -10/Exiles | Entered Mines 801 | -9/Mines | Met a Derelict bent on vengeance 891 | -9/Mines | Learned location of Storage (-7) 894 | -9/Mines | Discovered new exit (range 8) 904 | -9/Mines | Entered Materials 904 | -8/Materials | Evolved 4 slots: Propulsion x1, Utility x1, Weapon x2 1079 | -8/Materials | Build established: Skirmisher 1642 | -8/Materials | Garrison activated, responded to threat 1723 | -8/Materials | Destroyed 7 combat bots 1885 | -8/Materials | Lost 5 parts (3n2w) 2378 | -8/Materials | Build established: Scavenger-Skirmisher 2594 | -8/Materials | Discovered new exit (range 15) 2733 | -8/Materials | Entered Factory 2733 | -7/Factory | Evolved 2 slots: Utility x2 2860 | -7/Factory | Repaired Imp. Light Armor Plating 3031 | -7/Factory | Build established: Gunner 3077 | -7/Factory | Found Prototype Launcher 3506 | -7/Factory | Central database locked down 3699 | -7/Factory | Identified Rocket Array 3824 | -7/Factory | Discovered new exit (range 16) 3902 | -7/Factory | Entered Storage 4188 | -7/Storage | Assisted by bots powering up and referring to "LRC-V3" 4486 | -7/Storage | Build established: Commander-Gunner 4512 | -7/Storage | Identified exit to Garrison 4512 | -7/Storage | Entered Garrison 4512 | -7/Garrison | Accompanied by 5 allies 4772 | -7/Garrison | Lost 5 allies 4942 | -7/Garrison | Triggered checkpoint 5396 | -7/Garrison | Build established: Gunner 5646 | -7/Garrison | Triggered checkpoint 5688 | -7/Garrison | Triggered checkpoint 5880 | -7/Garrison | Discovered new exit (range 15) 6044 | -7/Garrison | Triggered checkpoint 6084 | -7/Garrison | Garrison Relay disabled 6334 | -7/Garrison | Phase Generator disabled 6614 | -7/Garrison | Garrison Relay disabled 7024 | -7/Garrison | Found embedded Infiltrators 7137 | -7/Garrison | Build established: Tank 7147 | -7/Garrison | Discovered new exit (range 12) 7270 | -7/Garrison | Triggered checkpoint 7328 | -7/Garrison | Triggered checkpoint 7354 | -7/Garrison | Learned Factory security intel 7475 | -7/Garrison | Garrison Relay disabled 7556 | -7/Garrison | Triggered checkpoint 7668 | -7/Garrison | Triggered checkpoint 7770 | -7/Garrison | Garrison Relay disabled 7879 | -7/Garrison | Discovered new exit (range 10) 7913 | -7/Garrison | Installed Relay Interface Framework 8215 | -7/Garrison | Build established: Bothacker-Tank 8400 | -7/Garrison | Entered Factory 8400 | -6/Factory | Evolved 2 slots: Utility x2 8750 | -6/Factory | First assault squad dispatched 9561 | -6/Factory | Cargo convoy interrupted 9911 | -6/Factory | Destroyed 8 combat bots 9964 | -6/Factory | Identified exit to Garrison 9964 | -6/Factory | Entered Garrison 10020 | -6/Garrison | Triggered checkpoint 10052 | -6/Garrison | Garrison Relay disabled 10284 | -6/Garrison | AWS/Autocannon suddenly broke down 10416 | -6/Garrison | Triggered checkpoint 10488 | -6/Garrison | Triggered checkpoint 10534 | -6/Garrison | Lost 4 parts (3n1w) 10678 | -6/Garrison | Build established: Bothacker-Skirmisher 10726 | -6/Garrison | Triggered checkpoint 10887 | -6/Garrison | Discovered new exit (range 12) 10902 | -6/Garrison | Expanded RIF knowledge: Signal Jamming 10950 | -6/Garrison | Triggered checkpoint 10969 | -6/Garrison | Garrison Relay disabled 11208 | -6/Garrison | Triggered checkpoint 11253 | -6/Garrison | Garrison Relay disabled 11362 | -6/Garrison | Triggered checkpoint 11496 | -6/Garrison | Discovered new exit (range 10) 11532 | -6/Garrison | Entered Factory 11532 | -6/Factory | Accompanied by 2 allies 11632 | -6/Factory | Garrison activated, responded to threat 11805 | -6/Factory | Lost 3 allies 11915 | -6/Factory | Identified exit to Garrison 11929 | -6/Factory | Entered Garrison 12021 | -6/Garrison | Triggered checkpoint 12071 | -6/Garrison | Triggered checkpoint 12076 | -6/Garrison | Lost 3 parts (1p1n1w) 12099 | -6/Garrison | Destroyed 7 combat bots 12147 | -6/Garrison | Discovered new exit (range 10) 12252 | -6/Garrison | Expanded RIF knowledge: Patrol Navigation 12383 | -6/Garrison | Entered Factory 12383 | -5/Factory | Evolved 2 slots: Propulsion x1, Utility x1 12672 | -5/Factory | Sucked down chute 12672 | -5/Factory | Entered Waste 12675 | -5/Waste | Build established: Bothacker-Tank 12687 | -5/Waste | Spotted C-40 Crusher 12694 | -5/Waste | Spotted C-40 Crusher 12763 | -5/Waste | Spotted C-40 Crusher 12780 | -5/Waste | Spotted C-40 Crusher 12784 | -5/Waste | Spotted C-40 Crusher 12958 | -5/Waste | Destroyed C-40 Crusher 12998 | -5/Waste | Build established: Bothacker-Skirmisher 13007 | -5/Waste | Spotted C-40 Crusher 13037 | -5/Waste | Destroyed C-40 Crusher 13120 | -5/Waste | Destroyed C-40 Crusher 13135 | -5/Waste | Destroyed C-40 Crusher 13227 | -5/Waste | Destroyed C-40 Crusher 13357 | -5/Waste | Destroyed C-40 Crusher 13442 | -5/Waste | Discovered new exit (range 15) 13470 | -5/Waste | Entered Factory 14311 | -5/Factory | Discovered new exit (range 10) 14418 | -5/Factory | Lost 5 parts (1n2u2w) 14532 | -5/Factory | Core integrity fell below 50% 14543 | -5/Factory | System corruption reached 10% 14554 | -5/Factory | Entered another Factory area 14554 | -4/Factory | Evolved 2 slots: Propulsion x1, Utility x1 14583 | -4/Factory | Lost 14 parts (1p5n3u5w) 14821 | -4/Factory | Build established: Hacker-Scout 15100 | -4/Factory | Lost 5 parts (3n2u) 15162 | -4/Factory | Lost 3 parts (1n2w) 15352 | -4/Factory | Core integrity fell below 50% 15361 | -4/Factory | Build established: Hacker-Mutant 15391 | -4/Factory | Core integrity fell below 20% 15394 | -4/Factory | Destroyed by Y-64 Sentinel with Wave Gun Last Messages --------------- 15381_ Hacking Suite severed. 15382_ Dropped Fusion Compressor. 15383_ Slug penetrates Wall. 15383_ Slug penetrates Fusion Modulator. 15384_ Authchip [R/NC] severed. 15384_ P-70 Sage resets C-35 Carver, system corruption cleaned. 15388_ Remote Datajack+ severed. 15390_ Slammed into P-70 Sage. 15391_ Destabilizing: System corrupted (+2). 15391_ Slug penetrates Fusion Modulator. 15392_ Slug penetrates Wall. 15392_ Slammed into P-70 Sage. 15393_ P-70 Sage resets C-35 Carver, system corruption cleaned. 15393_ Slammed into H-77 Assassin. 15393_ Fusion Modulator explodes. 15393_ Fabricator disabled. 15393_ C-35 Carver destroyed. 15393_ P-70 Sage destroyed. [Achievement: 20k Club] [Achievement: Just Browsing] Map ----- +----------------------------------------------------+ | #??????????? | | #??????????? | | ############+###################### #??????????? | | ???????????? ?????????############ #??????????? | | ??????????? ????????# ####+??????? | | ? ???????????????###### | | ??? #??????????????+ | | ???????????????????###### | | ???????????????????????# #####+#####+## | | ???????????????????????#### # ######????????????? | | ??????????????????????????# ####?????????????????? | | ??????????????????????????#!#????????????????????? | | ??????????????????????????# #????????????????????? | | ????????????????????????### ###??????????????????? | | ????????????????????????# #??????????????????? | | ###???????????########### Y =####???????????????? | | #?????????# + / ????????? | | #?????????# """ """ # ####### ???????? | | #?????????# """ """ # #??????????????????? | | #?????????# """ """ ## ##??????????????????? | | #?????????# ## #???????????????????? | | !#?????????# ! #; h ##??????????????????? | | ###?????????# ; ;#??????????????????? | | ????????????#########;;;;; ;##?????????????????? | | ???????????????????# ;;;;;;;;;;###???????????????? | | ???????????????????# ; @hc ! #???????????????? | | ???????????????????##; p %* = #???????????????? | | ???????????????????# ; %= #???????????????? | | ???????????????????##; =][ #???????????????? | | ????????????????????#; %!*!* #???????????????? | | ????????????????????#; #???????????????? | | ????????????????????## #???????????????? | | ?????????????????????#############???????????????? | | | | | | | | | | | | | | | | | | | | | | | | | | | | | | | | | | | +----------------------------------------------------+ Best States ------------- Heat Dissipation 62 Energy Generation 25 Energy Capacity 325 Matter Stores 300 Matter Capacity 300 Sight Range 16 Terrain Scan Range 16 Terrain Scan Density 285 Additional Mass Support 6 Armor Coverage 225 Utility Shielding 66 Melee Speed Boost 20 Evasion (%) 63 Targeting Accuracy 8 Armor Integrity Analysis 30 Offensive Hacking 20 Defensive Hacking 10 Relay Coupler Types 3 Relay Coupler Value 51 Authchip Count 2 Item Schematics ----------------- None Robot Schematics ------------------ None Fabricated ------------ Nothing Repaired ---------- Imp. Light Armor Plating | 24% | -7/Factory Studied --------- Wheel | -8/Materials | Hacked Remote Datajack | -7/Factory | Hacked Alien Tech Used ----------------- None Achievements -------------- 20k Club Assimilation Complete Drive-By GoHome() Hack The Planet Infiltrator Jackpot Join The Dark Side Just Browsing Mindtrick No Signal Preemptive Strike Satisfying Sixth Sense Taming Of The Crushers Versatile You Will Be Upgraded Challenges ------------ None Game ------ Seed 533dm3upchuck Manual? 1 Play Time 04:13:34 Cumulative 35.9 hours Start 2025.12.04 @ 12:05:06 End 2025.12.04 @ 21:03:03 Sessions 1 Manual Loads 0 Difficulty Rogue Special Mode None Game No. 40 Rogue 40 Adventurer 0 Explorer 0 Win Type - Total 0 Types 0/0/0/0/0/0/0/0/0/0 Lore% 11 Gallery% 25 Achievement% 22 Wizard Run 0 Options --------- Layout 0 ASCII 0 Keyboard 0 Movement Mouse Keybinds 0 Fullscreen 0 Font 24/Smallcaps Map View 74x54 Zoom Use 0% Tactical HUD 1 Map Filters NONE Filters NONE Steam 1 RUN: 31e2e8f1-480d-4a38-af93-a37349b1dbe4